fUSD/lending_fUSD_20250227
["ID","MTS","AMOUNT","RATE_DAILY","PERIOD"]
[354687894,1740618632409,-1491.1635,0.00033934,2]
[354687895,1740618632418,-150.0,0.00034034,2]
[354687896,1740618632427,-878.86,0.00034034,2]
[354687897,1740618632436,-150.0,0.00034034,2]
[354687898,1740618632446,-778.16,0.00034034,2]
[354687899,1740618632456,-826.87,0.00034034,2]
[354687900,1740618632465,-150.0,0.00034034,2]
[354687901,1740618632474,-150.0,0.00034034,2]
[354687902,1740618632484,-150.0,0.00034034,2]
[354687903,1740618632493,-150.0,0.00034034,2]
[354687904,1740618632502,-481.54,0.00034073,2]
[354687905,1740618632511,-481.54,0.00034237,2]
[354687906,1740618632520,-150.0,0.00034548,10]
[354687907,1740618632529,-201.77003944,0.00034639,7]
[354687908,1740618632538,-450.0,0.00035,2]
[354687909,1740618632547,-316.14,0.00035789,2]
[354687910,1740618632556,-201.77003944,0.00036074,7]
[354687911,1740618632565,-5771.08,0.00036261,2]
[354687912,1740618632574,-265.5718491,0.00036261,30]
[354687913,1740618632586,-34.4181509,0.00036261,30]
[354687914,1740618632595,-150.99,0.00036261,2]
[354687915,1740618632604,-2659.48,0.00036261,2]
[354687916,1740618632613,-999.99,0.00036261,2]
[354687917,1740618632622,-1450.63,0.00036261,2]
[354687918,1740618632631,-2846.81,0.00036261,2]
[354687919,1740618632640,-200.0,0.00036475,120]
[354687920,1740618632651,-22589.4041,0.0003654,2]
[354687921,1740618632663,-368.53396,0.00036906,2]
[354687922,1740618632672,-150.02,0.00036963,2]
[354687923,1740618632684,-2153.0,0.00037,117]
[354687924,1740618632694,-174.71037226,0.000372,103]
[354687925,1740618632705,-1000.0,0.00037439,2]
[354687926,1740618632714,-201.77003944,0.00037509,7]
[354687927,1740618632723,-153.87,0.00037863,2]
[354687928,1740618632733,-1124.92124037,0.00038,3]
[354687929,1740618632743,-152.0,0.00038,2]
[354687930,1740618632753,-316.14,0.00038053,2]
[354687931,1740618632763,-88.0784303,0.00038443,2]
[354687932,1740618632774,-91.1115697,0.00038443,2]
[354687933,1740618632783,-201.77003944,0.00038943,8]
[354687934,1740618632792,-156.08,0.00038955,120]
[354687935,1740618632801,-316.14,0.00040316,2]
[354687936,1740618632810,-201.77003944,0.00040378,8]
[354687937,1740618632819,-207.7188,0.000409,2]
[354687938,1740618632828,-643.70811676,0.00040996,15]
[354687939,1740618632838,-2165.0,0.00041,5]
[354687940,1740618632847,-4126.8299414,0.00041,14]
[354687941,1740618632858,-5506.28995044,0.00041,14]
[354687942,1740618632869,-4133.14191237,0.00041,14]
[354687943,1740618632880,-32070.73819479,0.00041,14]
[354687944,1740618632889,-1500.0,0.00041096,120]
[354687945,1740618632898,-187.52,0.000411,2]
[354687946,1740618632907,-150.02,0.00041125,2]
[354687947,1740618632916,-167.82,0.00041289,2]
[354687948,1740618632925,-1000.0,0.00041599,2]
[354687949,1740618632934,-201.77003944,0.00041813,9]
[354687950,1740618632944,-368.53397,0.00041906,2]
[354687951,1740618632955,-189.58,0.00041979,120]
[354687952,1740618632964,-35233.44222828,0.00042,30]
[354687953,1740618632973,-643.70811668,0.00042319,15]
[354687954,1740618632982,-257.2431,0.00042481,7]
[354687955,1740618632991,-316.14,0.0004258,2]
[354687956,1740618633000,-201.77003944,0.00043248,9]
[354687957,1740618633010,-1000.0,0.00043436,2]
[354687958,1740618633019,-2500.0,0.00043436,2]
[354687959,1740618633028,-2484.72,0.00043536,67]
[354687960,1740618633037,-643.70811668,0.00043643,15]
[354687961,1740618633046,-6064.12147833,0.00044,30]
[354687962,1740618633055,-179.19,0.00044239,2]
[354687963,1740618633064,-156.08,0.00044428,120]
[354687964,1740618633073,-152.0,0.00044674,3]
[354687965,1740618633082,-201.77003944,0.00044683,10]
[354687966,1740618633091,-562.56,0.000447,7]
[354687967,1740618633101,-500.0,0.00044784,16]
[354687968,1740618633110,-500.0,0.00044784,16]
[354687969,1740618633119,-500.0,0.00044784,16]
[354687970,1740618633128,-500.0,0.00044784,16]
[354687971,1740618633138,-500.0,0.00044784,16]
[354687972,1740618633147,-500.0,0.00044784,16]
[354687973,1740618633158,-500.0,0.00044784,16]
[354687974,1740618633167,-500.0,0.00044784,16]
[354687975,1740618633178,-500.0,0.00044784,16]
[354687976,1740618633188,-500.0,0.00044784,16]
[354687977,1740618633198,-316.14,0.00044844,2]
[354687978,1740618633209,-157.97057215,0.000449,120]
[354687979,1740618633219,-157.97057213,0.000449,120]
[354687980,1740618633228,-643.70811668,0.00044966,15]
[354687981,1740618633239,-7606.34858205,0.00045,120]
[354687982,1740618633248,-154.01,0.00045205,2]
[354687983,1740618633257,-150.02,0.00045287,2]
[354687984,1740618633267,-1000.0,0.00045759,2]
[354687985,1740618633276,-905.34987052,0.00045948,18]
[354687986,1740618633286,-320.25863269,0.00045948,2]
[354687987,1740618633295,-157.97057213,0.00045948,120]
[354687988,1740618633304,-8134.33451,0.00045973,16]
[354687989,1740618633314,-105050.45269933,0.00046,2]
[354687991,1740618637326,-174.64,0.0004161,2]
[354687992,1740618637336,-1673.94418204,0.00046,2]
[354687993,1740618637417,-814.290231,0.00046,2]
[354687994,1740618637489,-8402.87019244,0.00046,2]
[354687995,1740618637619,-150.0,0.00041125,2]
[354687996,1740618637628,-176.32759772,0.00046,2]
[354687997,1740618637639,-1177.2851396,0.00046,2]
[354688168,1740618639441,-150.0,0.00041906,2]
[354688170,1740618639451,-275.77,0.00044844,2]
[354688172,1740618639463,-3051.95766733,0.00046,2]
[354688177,1740618639502,-2735.46845779,0.00046,2]
[354688185,1740618639563,-254.98887991,0.00046,2]
[354688187,1740618639576,-2270.42076187,0.00046,2]
[354688193,1740618639624,-2500.0,0.00043436,2]
[354688195,1740618639633,-1500.0,0.00046,2]
[354688198,1740618639644,-798.52623198,0.00046,2]
[354688200,1740618639656,-900.0,0.00046,2]
[354688202,1740618639670,-1030.82396,0.00046,2]
[354688204,1740618639681,-1090.94073902,0.00046,2]
[354688206,1740618639692,-500.0,0.00046,2]
[354688213,1740618639749,-5375.7588598,0.00046,2]
[354688517,1740618642703,-85380.0544044,0.00046,2]
[354688519,1740618642715,-201.77003944,0.00046117,10]
[354688521,1740618642724,-643.70811668,0.0004629,15]
[354688523,1740618642733,-759.23,0.00046545,2]
[354688525,1740618642743,-237.49,0.00046575,30]
[354688527,1740618642752,-3000.0,0.000466,2]
[354688545,1740618642907,-368.53396,0.00046906,2]
[354688548,1740618642917,-166.0,0.00047,90]
[354688551,1740618642926,-316.14,0.00047108,2]
[354688555,1740618642936,-153.0,0.00047452,2]
[354688559,1740618642945,-201.77003944,0.00047552,11]
[354688562,1740618642956,-643.70811668,0.00047613,15]
[354688565,1740618642965,-152.5,0.00048,120]
[354688568,1740618642974,-167.82,0.00048103,2]
[354688571,1740618642983,-170.73,0.0004814,2]
[354688574,1740618642992,-1148.05126673,0.00048341,27]
[354688577,1740618643001,-170.73,0.00048393,2]
[354688580,1740618643010,-157.97057213,0.00048424,120]
[354688582,1740618643019,-1000.00000101,0.00048484,31]
[354688584,1740618643028,-1072.0,0.000485,30]
[354688586,1740618643037,-170.73,0.00048646,2]
[354688588,1740618643047,-150.0,0.00048715,7]
[354688590,1740618643056,-150.0,0.00048721,7]
[354688592,1740618643066,-150.0,0.00048731,7]
[354688594,1740618643075,-150.0,0.00048733,7]
[354688596,1740618643084,-1000.0,0.00048756,14]
[354688598,1740618643093,-150.0,0.0004876,7]
[354688600,1740618643102,-150.0,0.00048793,7]
[354688602,1740618643112,-150.0,0.00048796,7]
[354688604,1740618643121,-150.55743084,0.00048807,7]
[354688606,1740618643131,-150.0,0.00048819,7]
[354688608,1740618643139,-150.0,0.00048822,7]
[354688610,1740618643148,-1000.0,0.00048825,14]
[354688612,1740618643157,-150.0,0.00048826,7]
[354688614,1740618643166,-150.0,0.00048839,7]
[354688616,1740618643175,-150.0,0.00048842,7]
[354688618,1740618643184,-150.0,0.00048849,7]
[354688620,1740618643193,-150.0,0.00048851,7]
[354688622,1740618643202,-150.0,0.00048865,7]
[354688624,1740618643212,-153.87,0.00048877,2]
[354688626,1740618643221,-150.0,0.00048878,7]
[354688628,1740618643231,-150.0,0.00048878,7]
[354688630,1740618643240,-150.0,0.00048882,7]
[354688632,1740618643249,-170.73,0.000489,2]
[354688634,1740618643258,-10000.0,0.000489,120]
[354688636,1740618643267,-150.0,0.00048903,7]
[354688638,1740618643276,-166.0,0.00048904,90]
[354688640,1740618643285,-150.0,0.00048911,7]
[354688641,1740618643294,-150.0,0.00048921,7]
[354688643,1740618643303,-150.0,0.00048932,7]
[354688645,1740618643313,-150.0,0.00048932,7]
[354688647,1740618643322,-643.70811668,0.00048937,15]
[354688649,1740618643331,-150.0,0.00048939,7]
[354688651,1740618643341,-150.0,0.0004894,14]
[354688654,1740618643350,-150.0,0.00048941,7]
[354688656,1740618643360,-150.0,0.00048943,7]
[354688657,1740618643369,-150.0,0.0004895,7]
[354688660,1740618643379,-150.0,0.0004895,7]
[354688662,1740618643388,-150.0,0.00048951,7]
[354688664,1740618643397,-150.0,0.00048956,7]
[354688666,1740618643407,-150.0,0.00048965,2]
[354688668,1740618643417,-150.0,0.00048969,7]
[354688670,1740618643426,-150.0,0.00048972,7]
[354688671,1740618643435,-201.77003944,0.00048987,11]
[354688673,1740618643443,-97928.2426994,0.00048998,120]
[354688675,1740618643452,-6050.21891403,0.00049,120]
[354688717,1740618643967,-75306.99104615,0.00049,120]
[354688719,1740618643976,-1072.0,0.00049,30]
[354688722,1740618643985,-5816.0194676,0.00049002,2]
[354688723,1740618643994,-2702.2312689,0.00049002,2]
[354688725,1740618644003,-3279.81177295,0.00049096,15]
[354688727,1740618644012,-170.73,0.00049153,2]
[354688729,1740618644022,-55555.0,0.00049234,120]
[354688731,1740618644031,-3000.0,0.000493,2]
[354688733,1740618644040,-1575.0,0.00049315,120]
[354688735,1740618644049,-1575.0,0.00049315,120]
[354688737,1740618644058,-1575.0,0.00049315,120]
[354688739,1740618644066,-1575.0,0.00049315,120]
[354688741,1740618644075,-1575.0,0.00049315,120]
[354688743,1740618644086,-1575.0,0.00049315,120]
[354688745,1740618644095,-1575.0,0.00049315,120]
[354688747,1740618644103,-1575.0,0.00049315,120]
[354688749,1740618644112,-1575.0,0.00049315,120]
[354688751,1740618644122,-1575.0,0.00049315,120]
[354688753,1740618644131,-1575.0,0.00049315,120]
[354688755,1740618644140,-1575.0,0.00049315,120]
[354688757,1740618644149,-1575.0,0.00049315,120]
[354688759,1740618644159,-1575.0,0.00049315,120]
[354688761,1740618644167,-1575.0,0.00049315,120]
[354688763,1740618644177,-1575.0,0.00049315,120]
[354688765,1740618644186,-1575.0,0.00049315,120]
[354688767,1740618644196,-1575.0,0.00049315,120]
[354688769,1740618644206,-1575.0,0.00049315,120]
[354688771,1740618644215,-1575.0,0.00049315,120]
[354688773,1740618644224,-1575.0,0.00049315,120]
[354688775,1740618644233,-1575.0,0.00049315,120]
[354688777,1740618644242,-1575.0,0.00049315,120]
[354688779,1740618644251,-1575.01,0.00049315,120]
[354688781,1740618644260,-641.84,0.00049315,120]
[354688783,1740618644269,-641.84,0.00049315,120]
[354688785,1740618644278,-641.84,0.00049315,120]
[354688787,1740618644287,-641.84,0.00049315,120]
[354688789,1740618644296,-641.84,0.00049315,120]
[354688791,1740618644305,-641.84,0.00049315,120]
[354688793,1740618644314,-641.84,0.00049315,120]
[354688795,1740618644323,-641.84,0.00049315,120]
[354688797,1740618644332,-641.84,0.00049315,120]
[354688799,1740618644340,-641.84,0.00049315,120]
[354688801,1740618644349,-641.84,0.00049315,120]
[354688803,1740618644358,-641.84,0.00049315,120]
[354688805,1740618644367,-641.84,0.00049315,120]
[354688807,1740618644377,-641.84,0.00049315,120]
[354688809,1740618644386,-641.84,0.00049315,120]
[354688811,1740618644395,-641.84,0.00049315,120]
[354688812,1740618644404,-641.84,0.00049315,120]
[354688815,1740618644414,-641.84,0.00049315,120]
[354688816,1740618644423,-641.84,0.00049315,120]
[354688818,1740618644432,-641.84,0.00049315,120]
[354688821,1740618644442,-641.84,0.00049315,120]
[354688823,1740618644451,-641.84,0.00049315,120]
[354688824,1740618644462,-641.84,0.00049315,120]
[354688827,1740618644471,-641.87572481,0.00049315,120]
[354688828,1740618644480,-547.19,0.00049315,120]
[354688831,1740618644490,-547.19,0.00049315,120]
[354688832,1740618644499,-547.19,0.00049315,120]
[354688834,1740618644508,-547.19,0.00049315,120]
[354688836,1740618644517,-547.19,0.00049315,120]
[354688838,1740618644526,-547.19,0.00049315,120]
[354688840,1740618644535,-547.19,0.00049315,120]
[354688842,1740618644543,-547.19,0.00049315,120]
[354688844,1740618644552,-547.19,0.00049315,120]
[354688846,1740618644562,-547.19,0.00049315,120]
[354688848,1740618644571,-547.19,0.00049315,120]
[354688850,1740618644580,-547.19,0.00049315,120]
[354688852,1740618644589,-547.19,0.00049315,120]
[354688854,1740618644599,-547.19,0.00049315,120]
[354688856,1740618644608,-547.19,0.00049315,120]
[354688858,1740618644617,-547.19,0.00049315,120]
[354688860,1740618644626,-547.19,0.00049315,120]
[354688862,1740618644635,-547.19,0.00049315,120]
[354688864,1740618644645,-547.19,0.00049315,120]
[354688866,1740618644655,-547.19,0.00049315,120]
[354688868,1740618644668,-547.19,0.00049315,120]
[354688870,1740618644679,-547.19,0.00049315,120]
[354688873,1740618644689,-547.19,0.00049315,120]
[354688875,1740618644699,-547.39688182,0.00049315,120]
[354688876,1740618644710,-500.0,0.00049315,120]
[354688878,1740618644719,-151.0,0.00049315,14]
[354688880,1740618644729,-500.0,0.00049315,120]
[354688882,1740618644738,-150.0,0.00049315,30]
[354688884,1740618644747,-500.0,0.00049315,120]
[354688886,1740618644756,-500.0,0.00049315,120]
[354688888,1740618644765,-500.0,0.00049315,120]
[354688890,1740618644775,-152.307001,0.00049315,120]
[354688892,1740618644784,-1015.552244,0.00049315,120]
[354688894,1740618644793,-1630.78481,0.00049315,120]
[354688896,1740618644802,-500.0,0.00049315,120]
[354688898,1740618644811,-500.0,0.00049315,120]
[354688900,1740618644820,-500.0,0.00049315,120]
[354688902,1740618644829,-597.6,0.00049315,120]
[354688904,1740618644838,-500.0,0.00049315,120]
[354688906,1740618644847,-500.0,0.00049315,120]
[354688908,1740618644856,-500.0,0.00049315,120]
[354688910,1740618644865,-501.95983989,0.00049315,120]
[354688912,1740618644874,-500.0,0.00049315,120]
[354688914,1740618644883,-1000.0,0.00049315,120]
[354688916,1740618644891,-431.59754945,0.00049315,120]
[354688918,1740618644900,-500.0,0.00049315,120]
[354688920,1740618644910,-500.0,0.00049315,120]
[354688922,1740618644919,-413.60915835,0.00049315,120]
[354688924,1740618644928,-500.0,0.00049315,120]
[354688926,1740618644937,-500.0,0.00049315,120]
[354688928,1740618644946,-500.0,0.00049315,120]
[354688930,1740618644956,-500.0,0.00049315,120]
[354688932,1740618644965,-500.0,0.00049315,120]
[354688934,1740618644975,-500.0,0.00049315,30]
[354688936,1740618644984,-150.0,0.00049315,30]
[354688938,1740618644993,-150.0,0.00049315,2]
[354688940,1740618645002,-500.0,0.00049315,30]
[354688942,1740618645011,-500.0,0.00049315,120]
[354688944,1740618645020,-831.59,0.00049315,120]
[354688946,1740618645029,-500.0,0.00049315,120]
[354688948,1740618645039,-500.0,0.00049315,120]
[354688950,1740618645047,-500.0,0.00049315,7]
[354688952,1740618645056,-151.0,0.00049315,14]
[354688954,1740618645065,-500.0,0.00049315,120]
[354688955,1740618645074,-500.0,0.00049315,36]
[354688956,1740618645083,-5000.0,0.00049315,120]
[354688957,1740618645092,-5000.0,0.00049315,120]
[354688958,1740618645100,-5000.0,0.00049315,120]
[354688959,1740618645110,-5000.0,0.00049315,120]
[354688960,1740618645119,-5000.0,0.00049315,120]
[354688961,1740618645128,-5000.0,0.00049315,120]
[354688962,1740618645137,-5000.0,0.00049315,120]
[354688963,1740618645147,-5000.0,0.00049315,120]
[354688964,1740618645156,-5000.0,0.00049315,120]
[354688965,1740618645166,-5000.0,0.00049315,120]
[354688966,1740618645175,-5000.0,0.00049315,120]
[354688967,1740618645185,-5000.0,0.00049315,120]
[354688968,1740618645194,-5000.0,0.00049315,120]
[354688969,1740618645202,-5000.0,0.00049315,120]
[354688970,1740618645214,-5000.0,0.00049315,120]
[354688971,1740618645223,-5000.0,0.00049315,120]
[354688972,1740618645232,-5000.0,0.00049315,120]
[354688973,1740618645241,-250.102369,0.00049315,120]
[354688974,1740618645251,-316.14,0.00049372,2]
[354688975,1740618645260,-25000.0,0.000494,120]
[354688976,1740618645269,-350.0,0.000494,120]
[354688977,1740618645278,-375.0,0.000494,120]
[354688979,1740618645288,-170.73,0.00049407,2]
[354688981,1740618645297,-150.02,0.00049449,2]
[354688983,1740618645306,-1072.0,0.000495,30]
[354688984,1740618645315,-164.51156144,0.0004951,25]
[354688985,1740618645325,-201.0,0.0004956,30]
[354688986,1740618645335,-204.0,0.0004956,30]
[354688987,1740618645344,-500.0,0.00049589,30]
[354688988,1740618645353,-150.0,0.00049589,30]
[354688989,1740618645363,-500.0,0.00049589,30]
[354688990,1740618645372,-500.0,0.00049589,120]
[354688991,1740618645381,-500.0,0.00049589,120]
[354688993,1740618645390,-500.0,0.00049589,120]
[354688994,1740618645399,-438.98,0.00049589,120]
[354688995,1740618645409,-152.307001,0.00049589,120]
[354688996,1740618645419,-1015.552244,0.00049589,120]
[354688997,1740618645428,-1630.78481,0.00049589,120]
[354688999,1740618645438,-232.93,0.00049589,120]
[354689002,1740618645447,-500.0,0.00049589,120]
[354689003,1740618645459,-500.0,0.00049589,120]
[354689004,1740618645470,-1000.0,0.00049589,120]
[354689005,1740618645480,-500.0,0.00049589,120]
[354689006,1740618645490,-500.0,0.00049589,120]
[354689007,1740618645500,-500.0,0.00049589,120]
[354689008,1740618645509,-500.0,0.00049589,120]
[354689009,1740618645519,-308.48,0.00049589,120]
[354689010,1740618645529,-500.0,0.00049589,120]
[354689011,1740618645539,-500.0,0.00049589,120]
[354689012,1740618645549,-831.59,0.00049589,120]
[354689013,1740618645559,-500.0,0.00049589,120]
[354689014,1740618645568,-500.0,0.00049589,120]
[354689015,1740618645578,-500.0,0.00049589,7]
[354689016,1740618645588,-440.0,0.00049589,120]
[354689017,1740618645598,-44496.61661412,0.000496,120]
[354689018,1740618645607,-71089.19917266,0.000496,120]
[354689019,1740618645617,-151.0,0.000496,120]
[354689020,1740618645626,-167.56,0.00049632,120]
[354689021,1740618645635,-167.561,0.00049632,120]
[354689022,1740618645645,-170.73,0.0004966,2]
[354689023,1740618645656,-1757.7166835,0.0004968,110]
[354689024,1740618645670,-151.0,0.00049726,120]
[354689025,1740618645680,-263908.32073729,0.000498,120]
[354689026,1740618645690,-905.34987046,0.00049802,21]
[354689027,1740618645701,-5208.2935564,0.00049846,2]
[354689029,1740618645715,-3279.81177295,0.00049859,15]
[354689031,1740618645725,-150.0,0.0004986,15]
[354689033,1740618645735,-3080.0,0.00049862,7]
[354689035,1740618645747,-478.0233701,0.00049863,71]
[354689037,1740618645756,-74761.49563879,0.00049863,52]
[354689039,1740618645766,-849.0,0.00049863,30]
[354689041,1740618645775,-200.0,0.00049863,30]
[354689043,1740618645785,-500.0,0.00049863,30]
[354689045,1740618645794,-500.0,0.00049863,120]
[354689047,1740618645803,-500.0,0.00049863,120]
[354689049,1740618645812,-152.307001,0.00049863,120]
[354689051,1740618645821,-1015.552244,0.00049863,120]
[354689053,1740618645830,-1630.78481,0.00049863,120]
[354689055,1740618645839,-500.0,0.00049863,120]
[354689057,1740618645848,-500.0,0.00049863,120]
[354689059,1740618645857,-1000.0,0.00049863,120]
[354689061,1740618645867,-447.91359109,0.00049863,120]
[354689062,1740618645875,-479.36,0.00049863,120]
[354689064,1740618645885,-500.0,0.00049863,120]
[354689066,1740618645894,-500.0,0.00049863,120]
[354689068,1740618645903,-500.0,0.00049863,120]
[354689070,1740618645912,-500.0,0.00049863,120]
[354689072,1740618645921,-831.59,0.00049863,120]
[354689074,1740618645931,-500.0,0.00049863,120]
[354689076,1740618645940,-500.0,0.00049863,120]
[354689078,1740618645949,-235.67,0.00049863,7]
[354689080,1740618645960,-300.0,0.00049879,30]
[354689082,1740618645969,-177869.49986196,0.0004988,30]
[354689083,1740618645980,-44719.00508884,0.0004988,30]
[354689084,1740618645989,-1000.0,0.00049894,45]
[354689085,1740618645999,-156.08,0.00049901,120]
[354689086,1740618646008,-170.73,0.00049913,2]
[354689087,1740618646017,-1000.0,0.00049919,120]
[354689088,1740618646027,-2416.1126639,0.00049966,2]
[354689089,1740618646036,-300.0,0.0004997,3]
[354689090,1740618646045,-303.94853645,0.00049999,120]
[354689091,1740618646054,-171.37252039,0.00049999,120]
[354689092,1740618646063,-500.0,0.00049999,120]
[354689093,1740618646072,-347.50881578,0.00049999,120]
[354689094,1740618646081,-500.0,0.00049999,120]
[354689095,1740618646090,-500.0,0.00049999,120]
[354689096,1740618646099,-500.0,0.00049999,120]
[354689097,1740618646108,-500.0,0.00049999,120]
[354689098,1740618646117,-500.0,0.00049999,120]
[354689100,1740618646127,-100000.0,0.0005,50]
[354689102,1740618646136,-300.9,0.0005,120]
[354689104,1740618646145,-1417.00697832,0.0005,120]
[354689106,1740618646155,-30000.0,0.0005,30]
[354689107,1740618646164,-1068.67685169,0.0005,30]
[354689109,1740618646174,-547.98805933,0.0005,60]
[354689111,1740618646183,-1131.07158077,0.0005,2]
[354689113,1740618646193,-524.9678308,0.0005,120]
[354689115,1740618646203,-500.0,0.0005,30]
[354689118,1740618646216,-902.27043238,0.0005,120]
[354689119,1740618646226,-329884.95,0.0005,120]
[354689121,1740618646235,-450.0,0.0005,120]
[354689123,1740618646245,-422.0,0.0005,120]
[354689125,1740618646255,-980.0,0.0005,120]
[354689127,1740618646265,-1000.0,0.0005,120]
[354689129,1740618646275,-6239.0,0.0005,13]
[354689131,1740618646284,-1072.0,0.0005,30]
[354689133,1740618646293,-582.06798555,0.0005,30]
[354689135,1740618646303,-324.44272069,0.0005,120]
[354689137,1740618646313,-315.76431245,0.0005,30]
[354689139,1740618646322,-150.0,0.0005,30]
[354689141,1740618646331,-152.10580793,0.0005,30]
[354689143,1740618646341,-150.0,0.0005,30]
[354689145,1740618646350,-179.19,0.00050036,2]
[354689147,1740618646359,-315.76431245,0.00050039,30]
[354689149,1740618646369,-152.10580793,0.00050039,30]
[354689151,1740618646378,-150.0,0.00050062,30]
[354689153,1740618646387,-500.0,0.00050064,120]
[354689155,1740618646395,-700.0,0.00050064,120]
[354689157,1740618646404,-315.76431245,0.00050079,30]
[354689159,1740618646414,-152.10580793,0.00050079,30]
[354689161,1740618646423,-315.76431245,0.00050118,30]
[354689163,1740618646432,-152.10580793,0.00050118,30]
[354689165,1740618646441,-150.0,0.00050124,30]
[354689167,1740618646450,-500.0,0.00050136,120]
[354689169,1740618646461,-500.0,0.00050136,120]
[354689171,1740618646470,-1015.552244,0.00050136,120]
[354689173,1740618646479,-1630.78481,0.00050136,120]
[354689175,1740618646488,-500.0,0.00050136,120]
[354689177,1740618646497,-340.51,0.00050136,120]
[354689179,1740618646506,-485.19,0.00050136,120]
[354689180,1740618646515,-500.0,0.00050136,120]
[354689182,1740618646524,-500.0,0.00050136,120]
[354689184,1740618646533,-500.0,0.00050136,120]
[354689186,1740618646542,-500.0,0.00050136,120]
[354689187,1740618646551,-831.59,0.00050136,120]
[354689188,1740618646560,-500.0,0.00050136,120]
[354689191,1740618646694,-500.0,0.00050136,120]
[354689192,1740618646705,-500.0,0.00050137,30]
[354689193,1740618646716,-315.76431245,0.00050158,30]
[354689194,1740618646726,-152.10580793,0.00050158,30]
[354689195,1740618646737,-170.73,0.00050167,2]
[354689196,1740618646746,-150.0,0.00050177,30]
[354689197,1740618646755,-150.0,0.00050186,30]
[354689198,1740618646766,-315.76431245,0.00050197,30]
[354689199,1740618646775,-152.10580793,0.00050197,30]
[354689200,1740618646785,-315.76431245,0.00050236,30]
[354689201,1740618646794,-152.10580793,0.00050236,30]
[354689202,1740618646803,-150.0,0.00050248,30]
[354689203,1740618646813,-643.70811668,0.0005026,15]
[354689204,1740618646822,-315.76431245,0.00050276,30]
[354689205,1740618646831,-152.10580793,0.00050276,30]
[354689206,1740618646841,-150.0,0.0005031,30]
[354689207,1740618646850,-315.76431245,0.00050315,30]
[354689208,1740618646860,-152.10580793,0.00050315,30]
[354689209,1740618646869,-552.58,0.00050337,60]
[354689210,1740618646879,-552.58,0.00050337,60]
[354689211,1740618646888,-552.58,0.00050337,60]
[354689213,1740618646897,-552.58,0.00050337,60]
[354689214,1740618646907,-700.0,0.00050338,120]
[354689216,1740618646917,-315.76431245,0.00050355,30]
[354689218,1740618646926,-152.10580793,0.00050355,30]
[354689220,1740618646935,-150.0,0.00050355,30]
[354689222,1740618646944,-150.0,0.00050371,30]
[354689224,1740618646955,-189.58,0.00050375,120]
[354689226,1740618646966,-315.76431245,0.00050394,30]
[354689228,1740618646975,-152.10580793,0.00050394,30]
[354689230,1740618646986,-500.0,0.0005041,120]
[354689232,1740618646995,-152.307001,0.0005041,120]
[354689234,1740618647005,-1015.552244,0.0005041,120]
[354689236,1740618647015,-1630.78481,0.0005041,120]
[354689238,1740618647024,-500.0,0.0005041,120]
[354689240,1740618647034,-500.0,0.0005041,120]
[354689242,1740618647044,-500.0,0.0005041,120]
[354689244,1740618647053,-500.0,0.0005041,120]
[354689246,1740618647062,-500.0,0.0005041,120]
[354689248,1740618647071,-831.59,0.0005041,120]